Workbook

Sheet Einmaleinlage
H1: =H6+D8 -> 2052
B2: Altersversorgung
B3: Alter | D3: 65 | E3: Jahre | G3: Alter | H3: Jahr | I3: Kapital | J3: Wert-zuwachs | K3: Kapital zzgl. Wertzuwachs | L3: jährliche Entnahme | M3: Restkapital
B4: Anlagebetrag | D4: 250000 | E4: EUR
B5: Aufschubphase | D5: 0 | E5: Jahre
B6: Rendite in der Aufschubphase | D6: 3 | E6: % | G6: =D3+D5 -> 65 | H6: =YEAR(TODAY())+D5 -> 2022 | I6: =IF(H$1>H6,D7,0) -> 250000 | J6: =I6*D$9/100 -> 7500 | K6: =I6+J6 -> 257500 | L6: =IF(I6>0,D$10,0) -> 12648.12101 | M6: =IF(K6>L6,K6-L6,0) -> 244851.879
B7: angespartes Kapital | D7: =FV(D6/1200,D5*12,0,-D4,1) -> 250000 | E7: EUR | G7: =G6+1 -> 66 | H7: =H6+1 -> 2023 | I7: =IF(H7<=H$1,M6,0) -> 244851.879 | J7: 7345.55637 | K7: 252197.4354 | L7: =IF(I7>0,MIN(D$10,K7),0) -> 12648.12101 | M7: =IF(K7>L7,K7-L7,0) -> 239549.3143
B8: Kapitalverzehrdauer | D8: 30 | E8: Jahre | G8: 67 | H8: 2024 | I8: =IF(H8<=H$1,M7,0) -> 239549.3143 | J8: 7186.47943 | K8: 246735.7938 | L8: 12648.12101 | M8: 234087.6728
B9: Rendite in der Entsparphase | D9: 3 | E9: % | G9: 68 | H9: 2025 | I9: 234087.6728 | J9: 7022.630183 | K9: 241110.3029 | L9: 12648.12101 | M9: =IF(K9>L9,K9-L9,0) -> 228462.1819
B10: Entnahme pro Jahr | D10: =12*D11 -> 12648.12101 | E10: EUR | G10: 69 | H10: 2026 | I10: 228462.1819 | J10: 6853.865458 | K10: 235316.0474 | L10: 12648.12101 | M10: 222667.9264
B11: Entnahme pro Monat | D11: =PMT(D9/1200,D8*12,-D7) -> 1054.010084 | E11: EUR | G11: 70 | H11: 2027 | I11: 222667.9264 | J11: 6680.037791 | K11: 229347.9642 | L11: 12648.12101 | M11: 216699.8432
G12: 71 | H12: 2028 | I12: 216699.8432 | J12: 6500.995295 | K12: 223200.8385 | L12: 12648.12101 | M12: 210552.7174
B13: Information zur Höhe der | G13: 72 | H13: 2029 | I13: 210552.7174 | J13: 6316.581523 | K13: 216869.299 | L13: 12648.12101 | M13: 204221.178
B14: "ewigen Rente" pro Monat | D14: =IF(D9<0%,0,PMT((1+D9/100)^(1/12)-1,12,-D7,D7,0)) -> 616.5674431 | E14: EUR | G14: 73 | H14: 2030 | I14: =IF(H14<=H$1,M13,0) -> 204221.178 | J14: 6126.635339 | K14: 210347.8133 | L14: 12648.12101 | M14: 197699.6923
G15: 74 | H15: 2031 | I15: 197699.6923 | J15: 5930.990768 | K15: 203630.6831 | L15: 12648.12101 | M15: 190982.562
G16: 75 | H16: 2032 | I16: 190982.562 | J16: 5729.476861 | K16: 196712.0389 | L16: 12648.12101 | M16: 184063.9179
G17: 76 | H17: 2033 | I17: 184063.9179 | J17: 5521.917537 | K17: 189585.8354 | L17: 12648.12101 | M17: 176937.7144
B18: Wichtige Hinweise: | G18: 77 | H18: 2034 | I18: 176937.7144 | J18: 5308.131432 | K18: 182245.8458 | L18: 12648.12101 | M18: 169597.7248
G19: 78 | H19: 2035 | I19: 169597.7248 | J19: 5087.931745 | K19: 174685.6566 | L19: 12648.12101 | M19: 162037.5356
B20: Bei dieser Berechnung handelt es sich um eine kalkulatorische | G20: 79 | H20: 2036 | I20: 162037.5356 | J20: 4861.126067 | K20: 166898.6616 | L20: 12648.12101 | M20: 154250.5406
B21: Betrachtung eines möglichen Depotverlaufs. Keine Garantie! | G21: 80 | H21: 2037 | I21: 154250.5406 | J21: 4627.516219 | K21: 158878.0568 | L21: 12648.12101 | M21: 146229.9358
G22: 81 | H22: 2038 | I22: 146229.9358 | J22: 4386.898075 | K22: 150616.8339 | L22: 12648.12101 | M22: 137968.7129
B23: Die Berechnungen und Verläufe berücksichtigen keine Steuern. | G23: 82 | H23: 2039 | I23: 137968.7129 | J23: 4139.061387 | K23: 142107.7743 | L23: 12648.12101 | M23: 129459.6533
G24: 83 | H24: 2040 | I24: 129459.6533 | J24: 3883.789598 | K24: 133343.4429 | L24: 12648.12101 | M24: 120695.3219
B25: Die "ewige Rente" ist der Ertrag (Zinsen, Dividenden und | G25: 84 | H25: 2041 | I25: 120695.3219 | J25: 3620.859656 | K25: 124316.1815 | L25: 12648.12101 | M25: =IF(K25>L25,K25-L25,0) -> 111668.0605
B26: Wertzuwächse), den das angesparte Kapital bei der Rendite von | G26: 85 | H26: 2042 | I26: 111668.0605 | J26: 3350.041815 | K26: 115018.1023 | L26: 12648.12101 | M26: =IF(K26>L26,K26-L26,0) -> 102369.9813
B27: X% in der Entsparphase erzielt, ohne das Kapital zu verbrauchen. | G27: 86 | H27: 2043 | I27: 102369.9813 | J27: 3071.099439 | K27: 105441.0807 | L27: 12648.12101 | M27: 92792.95973
B28: Da das Kapital erhalten bleibt, wird die "Rente" ewig erzielt. | G28: 87 | H28: 2044 | I28: 92792.95973 | J28: 2783.788792 | K28: 95576.74852 | L28: 12648.12101 | M28: 82928.62751
G29: 88 | H29: 2045 | I29: 82928.62751 | J29: 2487.858825 | K29: 85416.48633 | L29: 12648.12101 | M29: 72768.36532
G30: 89 | H30: 2046 | I30: 72768.36532 | J30: 2183.05096 | K30: 74951.41628 | L30: 12648.12101 | M30: 62303.29527
G31: 90 | H31: 2047 | I31: 62303.29527 | J31: 1869.098858 | K31: 64172.39413 | L31: 12648.12101 | M31: 51524.27311
G32: 91 | H32: 2048 | I32: 51524.27311 | J32: 1545.728193 | K32: 53070.00131 | L32: 12648.12101 | M32: 40421.88029
G33: 92 | H33: 2049 | I33: 40421.88029 | J33: 1212.656409 | K33: 41634.5367 | L33: 12648.12101 | M33: 28986.41569
B34: Camesstr. 59, 47807 Krefeld | G34: 93 | H34: 2050 | I34: 28986.41569 | J34: 869.5924708 | K34: 29856.00816 | L34: 12648.12101 | M34: 17207.88715
B35: Tel.: 02151-313148 | G35: 94 | H35: 2051 | I35: 17207.88715 | J35: 516.2366145 | K35: 17724.12377 | L35: 12648.12101 | M35: 5076.002753
B36: info@proneutralis.de, www.proneutralis.de | G36: 95 | H36: 2052 | I36: 5076.002753 | J36: 152.2800826 | K36: 5228.282836 | L36: 5228.282836 | M36: 0
G37: 96 | H37: 2053 | I37: 0 | J37: 0 | K37: 0 | L37: 0 | M37: 0
B38: Infos unter: www.tmd-ar.de | G38: 97 | H38: 2054 | I38: 0 | J38: 0 | K38: 0 | L38: 0 | M38: 0
G39: 98 | H39: 2055 | I39: 0 | J39: 0 | K39: 0 | L39: 0 | M39: 0
G40: 99 | H40: 2056 | I40: 0 | J40: 0 | K40: 0 | L40: 0 | M40: 0

Sheet Kapitalaufbau
H1: =H6+D9 -> 2092
B2: Altersvorsorge
B3: Alter | D3: 25 | E3: Jahre | G3: Alter | H3: Jahr | I3: Kapital | J3: Wert-zuwachs | K3: Kapital zzgl. Wertzuwachs | L3: jährliche Entnahme | M3: Restkapital
B4: Anlagebetrag | D4: 10000 | E4: EUR
B5: Sparbetrag pro Monat | D5: 250 | E5: EUR
B6: Spardauer | D6: 40 | E6: Jahre | G6: =D3+D6 -> 65 | H6: =YEAR(TODAY())+D6 -> 2062 | I6: =IF(H$1>H6,D8,0) -> 265245.15 | J6: =I6*D$10/100 -> 7957.3545 | K6: =I6+J6 -> 273202.5045 | L6: =IF(I6>0,D$11,0) -> 13419.41102 | M6: =IF(K6>L6,K6-L6,0) -> 259783.0935
B7: Rendite in der Sparphase | D7: 3 | E7: % | G7: =G6+1 -> 66 | H7: 2063 | I7: =IF(H7<=H$1,M6,0) -> 259783.0935 | J7: =I7*D$10/100 -> 7793.492805 | K7: 267576.5863 | L7: =IF(I7>0,MIN(D$11,K7),0) -> 13419.41102 | M7: =IF(K7>L7,K7-L7,0) -> 254157.1753
B8: angespartes Kapital | D8: =FV(D7/1200,D6*12,-D5,-D4,1) -> 265245.15 | E8: EUR | G8: 67 | H8: 2064 | I8: 254157.1753 | J8: 7624.715258 | K8: 261781.8905 | L8: =IF(I8>0,MIN(D$11,K8),0) -> 13419.41102 | M8: 248362.4795
B9: Kapitalverzehrdauer | D9: 30 | E9: Jahre | G9: 68 | H9: 2065 | I9: 248362.4795 | J9: 7450.874385 | K9: 255813.3539 | L9: 13419.41102 | M9: 242393.9429
B10: Rendite in der Entsparphase | D10: 3 | E10: % | G10: 69 | H10: 2066 | I10: 242393.9429 | J10: 7271.818286 | K10: 249665.7612 | L10: 13419.41102 | M10: 236246.3501
B11: Entnahme pro Jahr | D11: =12*D12 -> 13419.41102 | E11: EUR | G11: 70 | H11: 2067 | I11: 236246.3501 | J11: 7087.390504 | K11: 243333.7407 | L11: 13419.41102 | M11: 229914.3296
B12: Entnahme pro Monat | D12: =PMT(D10/1200,D9*12,-D8) -> 1118.284252 | E12: EUR | G12: 71 | H12: 2068 | I12: 229914.3296 | J12: 6897.429889 | K12: 236811.7595 | L12: 13419.41102 | M12: 223392.3485
G13: 72 | H13: 2069 | I13: 223392.3485 | J13: 6701.770455 | K13: 230094.119 | L13: 13419.41102 | M13: 216674.7079 | N13: =D8/30/12 -> 736.7920834
B14: Information zur Höhe der | G14: 73 | H14: 2070 | I14: 216674.7079 | J14: 6500.241238 | K14: 223174.9492 | L14: 13419.41102 | M14: 209755.5381
B15: "ewigen Rente" pro Monat | D15: =IF(D10<0%,0,PMT((1+D10/100)^(1/12)-1,12,-D8,D8,0)) -> 654.1660957 | E15: EUR | G15: 74 | H15: 2071 | I15: 209755.5381 | J15: 6292.666144 | K15: 216048.2043 | L15: 13419.41102 | M15: 202628.7933
G16: 75 | H16: 2072 | I16: 202628.7933 | J16: 6078.863798 | K16: 208707.6571 | L16: 13419.41102 | M16: 195288.2461
G17: 76 | H17: 2073 | I17: 195288.2461 | J17: 5858.647382 | K17: 201146.8934 | L17: 13419.41102 | M17: 187727.4824
G18: 77 | H18: 2074 | I18: 187727.4824 | J18: 5631.824472 | K18: 193359.3069 | L18: 13419.41102 | M18: 179939.8959
B19: Wichtige Hinweise: | G19: 78 | H19: 2075 | I19: 179939.8959 | J19: 5398.196876 | K19: 185338.0927 | L19: 13419.41102 | M19: 171918.6817
G20: 79 | H20: 2076 | I20: 171918.6817 | J20: 5157.560452 | K20: 177076.2422 | L20: 13419.41102 | M20: 163656.8311
B21: Bei dieser Berechnung handelt es sich um eine kalkulatorische | G21: 80 | H21: 2077 | I21: 163656.8311 | J21: 4909.704934 | K21: 168566.5361 | L21: 13419.41102 | M21: 155147.1251
B22: Betrachtung eines möglichen Depotverlaufs. Keine Garantie! | G22: 81 | H22: 2078 | I22: 155147.1251 | J22: 4654.413752 | K22: 159801.5388 | L22: 13419.41102 | M22: 146382.1278
G23: 82 | H23: 2079 | I23: 146382.1278 | J23: 4391.463834 | K23: 150773.5916 | L23: 13419.41102 | M23: 137354.1806
B24: Die Berechnungen und Verläufe berücksichtigen keine Steuern. | G24: 83 | H24: 2080 | I24: 137354.1806 | J24: 4120.625418 | K24: 141474.806 | L24: 13419.41102 | M24: 128055.395
G25: 84 | H25: 2081 | I25: 128055.395 | J25: 3841.66185 | K25: 131897.0569 | L25: 13419.41102 | M25: =IF(K25>L25,K25-L25,0) -> 118477.6458
B26: Die "ewige Rente" ist der Ertrag (Zinsen, Dividenden und | G26: 85 | H26: 2082 | I26: 118477.6458 | J26: 3554.329375 | K26: 122031.9752 | L26: 13419.41102 | M26: =IF(K26>L26,K26-L26,0) -> 108612.5642
B27: Wertzuwächse), den das angesparte Kapital bei der Rendite von | G27: 86 | H27: 2083 | I27: 108612.5642 | J27: 3258.376926 | K27: 111870.9411 | L27: 13419.41102 | M27: 98451.53009
B28: X% in der Entsparphase erzielt, ohne das Kapital zu verbrauchen. | G28: 87 | H28: 2084 | I28: 98451.53009 | J28: 2953.545903 | K28: 101405.076 | L28: 13419.41102 | M28: 87985.66497
B29: Da das Kapital erhalten bleibt, wird die "Rente" ewig erzielt. | G29: 88 | H29: 2085 | I29: 87985.66497 | J29: 2639.569949 | K29: 90625.23492 | L29: 13419.41102 | M29: 77205.8239
G30: 89 | H30: 2086 | I30: 77205.8239 | J30: 2316.174717 | K30: 79521.99862 | L30: 13419.41102 | M30: 66102.5876
G31: 90 | H31: 2087 | I31: 66102.5876 | J31: 1983.077628 | K31: 68085.66523 | L31: 13419.41102 | M31: 54666.25421
G32: 91 | H32: 2088 | I32: 54666.25421 | J32: 1639.987626 | K32: 56306.24183 | L32: 13419.41102 | M32: 42886.83081
G33: 92 | H33: 2089 | I33: 42886.83081 | J33: 1286.604924 | K33: 44173.43573 | L33: 13419.41102 | M33: 30754.02471
G34: 93 | H34: 2090 | I34: 30754.02471 | J34: 922.6207414 | K34: 31676.64546 | L34: 13419.41102 | M34: 18257.23443
B35: Camesstr. 59, 47807 Krefeld | G35: 94 | H35: 2091 | I35: 18257.23443 | J35: 547.717033 | K35: 18804.95147 | L35: 13419.41102 | M35: 5385.540447
B36: Tel.: 02151-313148 | G36: 95 | H36: 2092 | I36: 5385.540447 | J36: 161.5662134 | K36: 5547.10666 | L36: 5547.10666 | M36: 0
B37: info@proneutralis.de, www.proneutralis.de | G37: 96 | H37: 2093 | I37: 0 | J37: 0 | K37: 0 | L37: 0 | M37: 0
G38: 97 | H38: 2094 | I38: 0 | J38: 0 | K38: 0 | L38: 0 | M38: 0
B39: Infos unter: www.tmd-ar.de | G39: 98 | H39: 2095 | I39: 0 | J39: 0 | K39: 0 | L39: 0 | M39: 0
G40: 99 | H40: 2096 | I40: 0 | J40: 0 | K40: 0 | L40: 0 | M40: 0
